bitfinex/quotes_ETHUSD_20250626
["timestamp","ask_amount","ask_price","bid_price","bid_amount"]
[1750920639234,0.12576257,2483.4,2483.3,9.94925526]
[1750920639558,0.2008,2483.9,2483.3,9.94925526]
[1750920639747,0.2008,2483.9,2483.3,9.74845526]
[1750920639748,0.12576271,2483.8,2483.3,9.74845526]
[1750920639934,0.12576271,2483.7,2483.5,0.2008]
[1750920640135,0.2008,2483.9,2483.5,0.2008]
[1750920640136,0.12576271,2483.6,2483.5,0.2008]
[1750920643469,0.12576271,2483.6,2483.0,0.7954]
[1750920643470,7.9563965,2483.6,2482.7,0.8055]
[1750920643635,1.675,2484.1,2482.8,6.522]
[1750920643636,7.00583379,2483.3,2482.8,6.522]
[1750920643840,0.95056271,2483.2,2482.8,6.7228]
[1750920644072,0.12576271,2483.1,2482.8,6.7228]
[1750920644248,0.12576271,2483.0,2482.8,6.7228]
[1750920644452,0.12576271,2482.9,2482.8,6.7228]
[1750920645089,0.8248,2483.2,2482.8,6.7228]
[1750920645242,0.12579089,2483.1,2482.8,0.2008]
[1750920645442,0.12579089,2483.0,2482.8,6.7288]
[1750920645641,0.12579089,2482.9,2482.8,6.7288]
[1750920645961,0.12579222,2482.9,2482.8,6.7288]
[1750920646173,0.8248,2483.2,2482.8,6.7288]
[1750920646366,0.12578902,2483.1,2482.8,6.7288]
[1750920646675,0.12578902,2483.0,2482.8,6.7288]
[1750920646844,0.8248,2483.2,2482.8,6.7288]
[1750920647043,0.12578951,2483.1,2482.8,6.7288]
[1750920647245,0.12578951,2483.0,2482.8,6.7288]
[1750920647468,0.8248,2483.2,2482.8,6.7288]
[1750920647782,0.12578938,2483.1,2482.8,6.7288]
[1750920647966,0.12578938,2483.0,2482.8,6.7288]
[1750920648170,0.8248,2483.2,2482.8,6.7288]
[1750920648372,0.12578869,2483.1,2482.8,6.7288]
[1750920648544,0.12578869,2483.0,2482.8,6.7288]
[1750920648750,0.8248,2483.2,2482.8,6.7288]
[1750920648963,0.12578862,2483.1,2482.8,6.7288]
[1750920649279,0.12578862,2483.0,2482.8,6.7288]
[1750920649448,0.8248,2483.2,2482.8,6.7288]
[1750920649652,0.12578871,2483.1,2482.8,6.7288]
[1750920649861,0.12578871,2483.0,2482.8,6.7288]
[1750920650062,0.8248,2483.2,2482.8,6.7288]
[1750920650359,0.12578921,2483.1,2482.8,6.7288]
[1750920650548,0.12578921,2483.0,2482.8,6.7288]
[1750920650743,0.8248,2483.2,2482.8,6.7288]
[1750920650949,0.12579002,2483.1,2482.8,6.7288]
[1750920651161,0.12579002,2483.0,2482.8,6.7288]
[1750920651362,0.8248,2483.2,2482.8,6.7288]
[1750920651581,0.1257897,2483.1,2482.8,6.7288]
[1750920651879,0.1257897,2483.0,2482.8,6.7288]
[1750920652082,0.8248,2483.2,2482.8,6.7288]
[1750920652283,0.12578823,2483.1,2482.8,6.7288]
[1750920652449,0.8248,2483.2,2482.8,6.7288]
[1750920652450,0.12578823,2483.0,2482.8,6.7288]
[1750920652649,0.8248,2483.2,2482.8,6.7288]
[1750920652866,0.1257872,2483.1,2482.8,6.7288]
[1750920653069,0.8222,2483.6,2482.9,4.05306464]
[1750920653377,0.12577725,2483.5,2483.2,0.2008]
[1750920653584,0.12577725,2483.4,2483.2,6.7258]
[1750920653782,1.023,2483.6,2483.2,6.7258]
[1750920653783,0.12577725,2483.3,2483.2,6.7258]
[1750920653954,0.12577725,2483.3,2483.2,9.94744948]
[1750920654155,0.2008,2483.6,2483.2,9.94744948]
[1750920654468,0.12576564,2483.5,2483.3,3.22150743]
[1750920654663,0.12576564,2483.4,2483.3,3.22150743]
[1750920655650,0.12576564,2483.4,2483.3,4.04160743]
[1750920656980,0.12576564,2483.4,2483.3,4.24240743]
[1750920657160,0.9758,2483.8,2483.5,3.22120545]
[1750920657360,0.12576279,2483.7,2483.5,6.523]
[1750920657569,0.7606,2484.1,2483.6,0.2008]
[1750920657768,1.20181327,2484.0,2483.6,0.2008]
[1750920657974,0.12575327,2483.9,2483.6,0.2008]
[1750920658174,0.12575327,2483.8,2483.6,0.2008]
[1750920658361,0.12575327,2483.7,2483.6,0.2008]
[1750920658561,0.12575327,2483.7,2483.6,3.42193061]
[1750920658760,0.12575327,2483.7,2483.6,0.2008]
[1750920658962,0.88035327,2483.7,2483.4,0.2008]
[1750920659167,0.12575327,2483.6,2483.4,6.523]
[1750920659397,0.12575327,2483.5,2483.4,6.523]
[1750920660078,0.12575327,2483.5,2483.3,0.2008]
[1750920660277,0.12576381,2483.4,2483.3,6.522]
[1750920661265,0.9954,2483.9,2483.3,6.7228]
[1750920661471,0.12575991,2483.8,2483.4,3.22132615]
[1750920661701,0.12575991,2483.7,2483.6,0.2008]
[1750920662108,0.12575991,2483.7,2483.6,3.42193061]
[1750920662974,0.12575991,2483.7,2483.6,0.2008]
[1750920663172,0.12575991,2483.7,2483.6,3.42193061]
[1750920664093,0.12575991,2483.7,2483.6,0.2008]
[1750920664678,0.89465991,2483.7,2483.3,7.3124]
[1750920664884,0.12575991,2483.6,2483.4,6.7248]
[1750920665097,0.7689,2483.7,2483.5,6.524]
[1750920665302,0.12575737,2483.6,2483.5,6.524]
[1750920665783,0.12575737,2483.6,2483.5,9.74526031]
[1750920665979,1.0254,2483.9,2483.5,9.74526031]
[1750920666283,0.1257553,2483.8,2483.5,9.74526031]
[1750920666590,0.1257553,2483.7,2483.5,9.74526031]
[1750920666790,0.12575518,2483.6,2483.5,6.524]
[1750920666996,1.0254,2483.9,2483.5,6.524]
[1750920667195,0.12575591,2483.8,2483.5,6.524]
[1750920667395,0.12575591,2483.7,2483.5,6.524]
[1750920667598,1.0254,2483.9,2483.5,6.524]
[1750920667916,0.12575636,2483.8,2483.5,6.524]
[1750920668210,0.12575636,2483.7,2483.5,6.524]
[1750920668411,1.0254,2483.9,2483.5,6.524]
[1750920668581,0.12575608,2483.8,2483.5,9.74525179]
[1750920668790,0.12575608,2483.7,2483.5,6.524]
[1750920668997,1.0254,2483.9,2483.5,6.524]
[1750920669173,0.1257554,2483.8,2483.5,9.74521855]
[1750920669377,0.1257554,2483.7,2483.5,6.524]
[1750920669578,1.0254,2483.9,2483.5,9.74525057]
[1750920669772,0.12575487,2483.8,2483.5,9.74525057]
[1750920669982,0.12575487,2483.7,2483.6,3.22113061]
[1750920670194,0.12575487,2483.7,2483.5,9.7451807]
[1750920670475,1.0254,2483.9,2483.5,9.7451807]
[1750920670704,0.12575375,2483.8,2483.5,9.7451807]
[1750920670905,0.12575375,2483.7,2483.5,9.7451807]
[1750920671107,1.0254,2483.9,2483.6,3.22111176]
[1750920671284,0.12575316,2483.8,2483.6,3.22111176]
[1750920671486,0.12575316,2483.7,2483.6,3.22111176]
[1750920673811,18.68283379,2484.4,2483.7,3.22092518]
[1750920673812,0.8274,2484.1,2483.7,3.22092518]
[1750920673980,0.12574971,2484.0,2483.6,0.2008]
[1750920674310,0.12574971,2483.9,2483.6,0.2008]
[1750920674511,0.12574971,2483.8,2483.6,0.2008]
[1750920674722,0.12574971,2483.7,2483.6,0.2008]
[1750920675825,0.12574971,2483.7,2483.5,6.524]
[1750920675982,0.2008,2484.0,2483.5,6.7248]
[1750920676296,0.12575589,2483.9,2483.5,6.7248]
[1750920676491,0.12575589,2483.8,2483.5,6.7248]
[1750920676815,0.12575589,2483.7,2483.5,9.9460518]
[1750920676993,0.2008,2484.0,2483.5,9.9460518]
[1750920677195,0.12575407,2483.9,2483.5,6.7248]
[1750920677496,0.12575407,2483.8,2483.5,6.7248]
[1750920677696,0.12575407,2483.7,2483.5,6.7248]
[1750920677902,0.12575452,2483.6,2483.5,6.7248]
[1750920678304,0.12575452,2483.6,2483.5,9.94606031]
[1750920678884,0.2008,2484.0,2483.5,9.94606031]
[1750920679085,0.12575306,2483.9,2483.5,9.94606031]
[1750920679286,0.12575306,2483.8,2483.5,9.94606031]
[1750920679504,0.12575306,2483.7,2483.5,9.94606031]
[1750920679704,0.12575306,2483.6,2483.5,9.94606031]
[1750920679918,0.12575306,2483.6,2483.5,6.7248]
[1750920682994,0.12575306,2483.6,2483.5,9.94606031]
[1750920683508,0.12575306,2483.6,2483.5,6.7248]
[1750920687321,0.12575306,2483.6,2483.5,9.94606031]
[1750920687889,0.769,2483.9,2483.5,9.94606031]
[1750920688089,0.1257529,2483.8,2483.5,9.94606031]
[1750920688307,0.769,2483.9,2483.5,9.94606031]
[1750920688519,0.12575218,2483.8,2483.5,9.94606031]
[1750920688736,0.769,2483.9,2483.5,9.94606031]
[1750920689721,0.12575315,2483.8,2483.5,6.7248]
[1750920690287,0.769,2483.9,2483.5,6.7248]
[1750920690709,0.12575492,2483.8,2483.5,6.7248]
[1750920690910,0.12575492,2483.8,2483.3,3.22146178]
[1750920690911,0.12575492,2483.7,2483.3,0.55]
[1750920691112,1.674,2484.3,2483.0,1.674]
[1750920691113,0.88085492,2483.6,2483.0,1.674]
[1750920691300,0.2008,2483.4,2483.1,6.518]
[1750920691504,0.12575492,2483.3,2483.1,6.518]
[1750920691706,0.12575492,2483.2,2483.1,6.518]
[1750920692102,0.12575492,2483.2,2483.1,9.73977922]
[1750920692303,0.7551,2483.8,2483.2,3.22164116]
[1750920692511,0.2008,2483.6,2483.4,3.22138869]
[1750920692717,0.12576116,2483.5,2483.4,3.22138869]
[1750920693116,0.12576116,2483.5,2483.4,10.28938869]
[1750920693316,0.12576116,2483.5,2483.4,10.49018869]
[1750920693942,0.12576116,2483.5,2483.4,11.31238869]
[1750920708517,0.12576116,2483.5,2483.4,10.49018869]
[1750920709336,0.12576116,2483.5,2483.4,0.2008]
[1750920709539,0.12576116,2483.5,2482.8,0.7887]
[1750920709748,0.7727,2483.3,2483.1,0.2008]
[1750920709934,0.12576116,2483.2,2483.1,6.517]
[1750920711295,0.12576116,2483.2,2482.7,0.49026191]
[1750920711458,0.12576116,2483.1,2482.9,6.518]
[1750920711659,0.88176116,2483.0,2482.9,6.518]
[1750920718464,0.756,2483.0,2482.9,6.518]
[1750920718669,0.88179106,2483.0,2482.9,6.518]
[1750920719172,0.756,2483.0,2482.9,6.518]
[1750920720182,0.2008,2483.2,2482.9,6.518]
[1750920720470,0.8003,2483.3,2482.9,6.7188]
[1750920720649,0.12578429,2483.2,2482.9,6.7188]
[1750920720975,0.12578671,2483.1,2482.9,6.518]
[1750920721160,0.2008,2483.1,2482.9,6.518]
[1750920722368,17.00583379,2483.6,2483.0,3.22190898]
[1750920722369,0.12578321,2483.2,2483.0,3.22190898]
[1750920722576,0.2008,2483.4,2482.9,9.94078498]
[1750920722866,0.12578037,2483.3,2482.9,9.94078498]
[1750920723062,0.12578037,2483.2,2482.7,0.55]
[1750920723368,1.13498037,2483.1,2483.0,6.519]
[1750920725566,1.0092,2483.1,2483.0,6.519]
[1750920726067,0.2008,2483.1,2483.0,6.519]
[1750920730040,0.9564,2483.3,2483.0,9.74090898]
[1750920731379,0.9564,2483.3,2483.0,6.519]
[1750920731557,1.162132,2483.3,2483.0,6.519]
[1750920732245,1.162132,2483.3,2483.0,9.74090569]
[1750920732475,0.9564,2483.3,2483.0,9.74090569]
[1750920733177,0.2008,2483.3,2483.0,10.55240569]
[1750920734575,0.2008,2483.3,2483.0,7.3305]
[1750920734744,0.2008,2483.3,2483.0,6.519]
[1750920734952,0.2008,2483.3,2483.0,9.74089808]
[1750920735847,0.2008,2483.3,2483.0,6.519]
[1750920736062,0.12578777,2483.2,2483.0,6.519]
[1750920736311,0.2008,2483.3,2483.0,6.519]
[1750920736312,0.12578777,2483.1,2483.0,6.519]
[1750920736884,0.12578777,2483.1,2483.0,9.74090898]
[1750920741075,0.12578777,2483.1,2483.0,6.519]
[1750920742062,0.12578777,2483.1,2483.0,9.74090898]
[1750920742560,0.12578777,2483.1,2483.0,6.519]
[1750920742864,0.12578777,2483.1,2483.0,9.74090898]
[1750920744060,0.12578777,2483.1,2483.0,6.519]
[1750920746785,0.12578777,2483.1,2482.9,6.7188]
[1750920746977,0.12578777,2483.0,2482.9,7.2688]
[1750920748599,0.12578777,2483.0,2482.9,6.518]
[1750920749664,0.12578777,2483.0,2482.7,3.4230321]
[1750920749988,0.12578777,2483.0,2482.8,6.518]
[1750920749989,0.12578777,2482.9,2482.8,6.518]
[1750920750497,0.12578777,2482.9,2482.5,0.55]
[1750920750498,0.12578777,2482.9,2482.4,4.57341314]
[1750920750810,0.12578777,2482.8,2482.5,6.518]
[1750920750968,0.12580181,2482.7,2482.5,6.518]
[1750920751312,0.2008,2482.9,2482.5,6.518]
[1750920751605,0.12580317,2482.8,2482.5,9.74053668]
[1750920751896,0.12580317,2482.7,2482.5,9.74053668]
[1750920752201,0.2008,2482.9,2482.5,9.74053668]
[1750920752496,0.12580043,2482.8,2482.5,9.74053668]
[1750920752668,0.12580043,2482.7,2482.5,9.74053668]
[1750920752867,0.2008,2482.9,2482.5,9.74053668]
[1750920753079,0.12580099,2482.8,2482.5,9.74053668]
[1750920753279,0.12580099,2482.7,2482.5,6.518]
[1750920753476,0.2008,2482.9,2482.5,9.74053987]
[1750920753680,0.12580006,2482.8,2482.5,9.74053987]
[1750920753972,0.12580006,2482.7,2482.5,9.74053987]
[1750920754297,0.2008,2482.9,2482.5,9.74053987]
[1750920754601,0.12580064,2482.8,2482.5,9.74053987]
[1750920754794,0.2008,2482.9,2482.5,9.74053987]
[1750920755096,0.12579926,2482.8,2482.6,3.22239468]
[1750920755297,0.2008,2482.9,2482.8,3.77216851]
[1750920755485,0.12579119,2482.9,2482.8,10.29016851]
[1750920755685,0.12579119,2482.9,2482.8,11.06186851]
[1750920756803,0.12579119,2482.9,2482.8,7.8397]
[1750920757101,0.12579119,2482.9,2482.8,6.518]
[1750920757602,0.12579119,2482.9,2482.7,6.518]
[1750920757805,0.12579119,2482.8,2482.7,6.518]
[1750920760004,0.12579119,2482.8,2482.7,9.7402983]
[1750920760506,0.12579119,2482.8,2482.7,6.518]
[1750920763778,0.12579119,2482.8,2482.7,9.7402983]
[1750920764281,0.12579119,2482.8,2482.7,6.518]
[1750920765097,0.12579119,2482.8,2482.7,9.7402983]
[1750920765801,0.2008,2483.0,2482.7,9.7402983]
[1750920765994,0.12579358,2482.9,2482.7,9.7402983]
[1750920766198,0.8164,2483.2,2482.8,3.22216851]
[1750920766511,0.32658903,2483.1,2482.8,3.22216851]
[1750920766712,0.12578903,2483.0,2482.8,3.22216851]
[1750920766884,0.12578903,2482.9,2482.8,3.22216851]
[1750920767076,0.12578903,2482.9,2482.8,3.77216851]
[1750920767617,0.12578903,2482.9,2482.8,0.55]
[1750920769913,0.12578903,2482.9,2482.8,3.77216851]
[1750920772315,0.12578903,2482.9,2482.8,0.55]
[1750920772818,0.12578903,2482.9,2482.7,3.22223462]
[1750920773039,0.2008,2483.1,2482.7,4.19853462]
[1750920773242,0.12579329,2483.0,2482.8,3.22216559]
[1750920773536,0.12579329,2482.9,2482.8,3.22216559]
[1750920773920,0.12579329,2482.9,2482.7,4.19854314]
[1750920774099,0.2008,2483.1,2482.7,4.19854314]
[1750920774300,0.12579171,2483.0,2482.7,4.19854314]
[1750920774609,0.12579171,2482.9,2482.7,4.19854314]
[1750920774915,0.2008,2483.1,2482.7,4.19854314]
[1750920775130,0.12579162,2483.0,2482.7,4.19854314]
[1750920775294,0.12579162,2482.9,2482.7,4.19854314]
[1750920775498,0.2008,2483.1,2482.7,4.19854314]
[1750920775721,0.12579192,2483.0,2482.7,4.19854314]
[1750920775894,0.12579192,2482.9,2482.7,4.19854314]
[1750920776096,0.2008,2483.1,2482.8,3.22216527]
[1750920776297,0.12579059,2483.0,2482.8,3.22216527]
[1750920776513,0.12579059,2482.9,2482.8,3.22216527]
[1750920776725,0.12579059,2482.9,2482.8,3.77216527]
[1750920778700,0.12579059,2482.9,2482.8,3.97296527]
[1750920779835,0.12579059,2482.9,2482.8,0.7508]
[1750920782045,7.89082438,2482.9,2482.2,3.22294082]
[1750920782335,0.7592,2482.7,2482.2,9.73994082]
[1750920782515,0.12579059,2482.6,2482.1,9.74001418]
[1750920782709,0.12579059,2482.5,2482.1,9.74001418]
[1750920782916,0.7592,2482.7,2482.1,6.517]
[1750920783115,0.12581926,2482.6,2482.3,3.22272751]
[1750920783312,0.12581926,2482.5,2482.4,3.22268772]
[1750920783530,0.12581926,2482.5,2482.4,3.77268772]
[1750920783726,0.12579956,2482.9,2482.8,3.22216851]
[1750920786389,0.12579956,2482.9,2482.7,3.77222342]
[1750920786570,0.12579956,2482.8,2482.7,3.77222342]
[1750920787615,0.12579956,2482.8,2482.7,0.55]
[1750920788214,0.12579956,2482.8,2482.7,3.7722983]
[1750920788545,0.12579953,2482.8,2482.7,3.7722983]
[1750920790017,0.12579953,2482.8,2482.7,4.5914983]
[1750920790230,0.12579953,2482.8,2482.7,3.7722983]
[1750920791927,0.12579953,2482.8,2482.7,3.9730983]
[1750920797260,12.4777,2483.3,2483.0,0.55]
[1750920797450,1.39363747,2483.2,2483.0,3.77190839]
[1750920797630,0.12578747,2483.1,2483.0,3.77190839]
[1750920798030,0.12578747,2483.1,2483.0,0.55]
[1750920800033,0.91818747,2483.1,2482.5,3.22245591]
[1750920800261,0.91818747,2483.1,2482.6,3.22242456]
[1750920800262,0.32658747,2483.0,2482.6,3.22242456]
[1750920800458,0.12578747,2482.9,2482.5,3.4232858]
[1750920800676,0.12578747,2482.8,2482.6,0.55]
[1750920800964,0.2008,2483.0,2482.6,0.55]
[1750920800965,0.12578747,2482.7,2482.6,0.55]
[1750920802369,0.12578747,2482.7,2482.6,3.77242809]
[1750920802780,0.12578747,2482.7,2482.6,0.55]
[1750920802978,0.12578747,2482.7,2482.4,0.55]
[1750920803144,0.12578747,2482.6,2482.4,0.55]
[1750920803475,0.12578747,2482.5,2482.4,0.55]
[1750920803782,0.12578747,2482.5,2482.3,0.2008]
[1750920803949,0.12578747,2482.4,2482.0,3.22320709]
[1750920804265,0.12578747,2482.3,2482.2,0.7508]
[1750920804570,0.7974,2482.4,2482.2,3.97373924]
[1750920804881,1.0315,2482.6,2482.2,0.7508]
[1750920805074,0.12581853,2482.5,2482.3,3.22281754]
[1750920805244,0.12581853,2482.4,2482.3,3.77281754]
[1750920805575,0.2008,2482.6,2482.3,3.77281754]
[1750920805740,0.12581895,2482.5,2482.3,0.55]
[1750920805940,0.12581895,2482.4,2482.3,0.55]
[1750920806559,0.12581895,2482.4,2482.3,3.77281754]
[1750920806762,0.91961895,2482.4,2481.9,4.66485417]
[1750920807037,0.12581895,2482.3,2482.1,0.55]
[1750920807243,0.12581895,2482.2,2481.9,1.44152415]
[1750920807449,0.12581895,2482.1,2481.9,1.44152415]
[1750920807644,0.12581895,2482.0,2481.9,1.44152415]
[1750920810369,0.12581895,2482.0,2481.6,0.55]
[1750920810576,0.12581895,2481.9,2481.6,0.55]
[1750920810773,10.0,2482.2,2481.5,0.55]
[1750920810957,0.8172,2482.0,2481.3,0.7524]
[1750920811150,0.8172,2481.8,2481.2,3.22416629]
[1750920811350,0.12585137,2481.7,2481.1,3.22425856]
[1750920811551,0.12587173,2481.6,2481.2,3.77421821]
[1750920811742,0.12586867,2481.7,2481.2,3.77421821]
[1750920811945,2.4902,2481.8,2481.2,3.77421821]
[1750920812156,0.12586945,2481.7,2481.3,3.22411144]
[1750920812354,2.4902,2481.8,2481.4,3.22391907]
[1750920812690,0.7789,2482.0,2481.7,3.22358711]
[1750920812877,0.12585029,2481.9,2481.7,3.22358711]
[1750920813253,0.7789,2482.0,2481.7,3.22358711]
[1750920813451,0.90474882,2482.0,2481.7,3.22358711]
[1750920813878,0.7789,2482.0,2481.7,3.22358711]
[1750920814087,1.673,2482.1,2481.8,3.22345157]
[1750920814677,0.8115,2482.2,2481.9,3.22324049]
[1750920814983,1.79884108,2482.1,2481.8,3.22338971]
[1750920815178,1.673,2482.1,2481.7,3.2235907]
[1750920815379,0.24845,2482.0,2481.7,0.55]
[1750920815554,0.24845,2482.0,2481.7,3.77358775]
[1750920815757,1.673,2482.1,2481.7,3.77358775]
[1750920816482,1.673,2482.1,2481.8,3.22346345]
[1750920816874,1.8738,2482.1,2481.9,3.22323987]
[1750920817074,1.8738,2482.1,2481.9,3.22333695]
[1750920817385,0.2008,2482.1,2481.9,3.22333695]
[1750920819189,0.2008,2482.1,2482.0,3.22320709]
[1750920819600,0.2008,2482.1,2481.9,3.22326789]
[1750920820587,0.2008,2482.1,2482.0,3.22320709]
[1750920820763,0.8018,2482.4,2482.0,3.22320709]
[1750920820969,2.60063962,2482.4,2482.1,3.77300604]
[1750920821183,2.4748,2482.4,2482.2,3.22293753]
[1750920821498,7.00583379,2483.0,2482.2,3.22293753]
[1750920821499,0.8194,2482.8,2482.2,0.55]
[1750920821699,0.8194,2482.8,2482.5,3.22250297]
[1750920821921,0.12581232,2482.8,2482.6,0.55]
[1750920822076,0.30625497,2484.1,2482.6,0.55]
[1750920822077,0.2008,2483.6,2483.5,3.22126031]
[1750920822264,0.2008,2484.0,2483.3,3.7714803]
[1750920822594,0.12575854,2484.1,2483.4,0.2008]
[1750920822595,0.12575854,2483.9,2483.4,0.2008]
[1750920822898,0.2008,2483.8,2483.5,3.77124945]
[1750920823290,0.2008,2483.8,2483.5,0.55]
[1750920823599,0.2008,2483.8,2483.5,3.77122427]
[1750920824160,0.2008,2483.8,2483.5,0.55]
[1750920824398,0.2008,2483.8,2483.5,3.77124913]
[1750920824777,0.2008,2483.8,2483.4,0.2008]
[1750920825078,0.7909,2483.7,2483.4,0.7508]
[1750920825270,0.7909,2483.7,2483.4,0.2008]
[1750920825271,1.05737,2483.7,2483.4,0.2008]
[1750920825474,1.05737,2483.7,2483.1,3.77172092]
[1750920825698,0.2008,2483.6,2483.1,3.97252092]
[1750920825906,0.2008,2483.6,2483.1,0.7508]
[1750920826563,1.05737,2483.7,2483.0,3.22188061]
[1750920826767,0.2008,2483.4,2483.0,3.22188061]
[1750920827169,0.7877,2483.3,2483.0,0.55]
[1750920827580,0.7877,2483.3,2483.0,3.7719035]
[1750920827992,0.7877,2483.3,2482.9,3.42280606]
[1750920828576,0.7877,2483.3,2483.0,3.22189503]
[1750920830301,0.7877,2483.3,2482.9,0.2008]
[1750920830478,0.2008,2483.2,2482.8,3.22211249]
[1750920830981,0.2008,2483.2,2482.8,3.77210233]
[1750920834202,0.46695,2483.2,2482.7,3.42303619]
[1750920834408,0.2008,2483.0,2482.7,3.22223619]
[1750920835108,0.2008,2483.0,2482.8,3.2221561]
[1750920835793,0.2008,2483.0,2482.7,3.77222774]
[1750920836104,0.2008,2483.0,2482.8,3.22216315]
[1750920836481,0.2008,2483.0,2482.7,3.77222997]
[1750920836808,0.2008,2483.0,2482.8,3.22215645]
[1750920837813,0.2008,2483.0,2482.8,3.22215702]
[1750920838706,0.2008,2483.0,2482.7,0.55]
[1750920838940,0.7989,2482.9,2482.5,3.22247436]
[1750920839112,0.9997,2482.9,2482.4,3.97340053]
[1750920839682,0.9997,2482.9,2482.5,3.22254514]
[1750920840891,0.9997,2482.9,2482.4,3.97341846]
[1750920841209,0.9997,2482.9,2482.4,3.97343714]
[1750920841404,1.691,2482.8,2482.4,0.7508]
[1750920841600,1.691,2482.8,2482.4,0.2008]
[1750920841803,1.691,2482.8,2482.3,3.22278219]
[1750920841804,0.2008,2482.6,2482.3,3.22278219]
[1750920843494,0.2008,2482.6,2482.3,3.77281754]
[1750920844018,0.2008,2482.6,2482.3,3.77269233]
[1750920844519,0.2008,2482.6,2482.4,3.22267251]
[1750920844989,0.2008,2482.6,2482.3,3.77276374]
[1750920845613,0.2008,2482.6,2482.3,3.77274811]
[1750920847300,0.2008,2482.6,2482.4,3.22268375]
[1750920847703,0.2008,2482.6,2482.5,3.7725579]
[1750920847905,1.8918,2482.8,2482.5,3.2225579]
[1750920848496,1.8918,2482.8,2482.6,3.22240809]
[1750920848825,1.8918,2482.8,2482.5,3.7724883]
[1750920849030,1.8918,2482.8,2482.6,3.22241373]
[1750920849402,1.691,2482.9,2482.7,3.2222983]
[1750920849930,1.691,2482.9,2482.6,3.22237391]
[1750920850299,0.12580192,2482.8,2482.7,3.22228468]
[1750920851435,1.691,2483.1,2482.8,3.77214775]
[1750920851636,0.12579808,2483.0,2482.8,0.55]
[1750920851933,0.12579808,2482.9,2482.8,3.77216851]
[1750920852307,0.93569808,2482.9,2482.3,0.55]
[1750920852630,0.32659808,2482.8,2482.5,3.22254848]
[1750920852933,0.2008,2482.8,2482.5,3.22254848]
[1750920853144,0.2008,2482.8,2482.4,3.22260962]
[1750920853601,0.2008,2482.8,2482.5,3.22255776]
[1750920855637,0.2008,2482.8,2482.4,3.22261611]
[1750920856944,0.2008,2482.8,2482.5,3.22253892]
[1750920857605,0.2008,2482.8,2482.3,3.97355608]
[1750920857606,0.2008,2482.8,2482.4,3.22260863]
[1750920858101,0.2008,2482.8,2482.3,0.7508]
[1750920858336,0.2008,2482.6,2482.3,3.77280911]
[1750920859514,0.2008,2482.6,2482.3,0.55]
[1750920860014,0.2008,2482.6,2482.4,3.22256087]
[1750920860209,0.2008,2482.6,2482.5,3.2225579]
[1750920860450,0.8099,2482.9,2482.5,3.2225579]
[1750920860645,0.8099,2482.9,2482.5,3.22244902]
[1750920860646,0.2008,2482.8,2482.5,3.22244902]
[1750920861123,0.12580727,2482.7,2482.5,3.22244902]
[1750920861324,0.12580727,2482.6,2482.5,3.22244902]
[1750920863335,0.12580727,2482.6,2482.4,3.22261326]
[1750920863539,0.2008,2482.8,2482.4,3.22261326]
[1750920863740,0.12580892,2482.7,2482.4,3.22261326]
[1750920863918,0.12580892,2482.6,2482.4,3.22261326]
[1750920864118,0.12580892,2482.5,2482.4,0.55]
[1750920865540,0.12580892,2482.5,2482.3,0.2008]
[1750920865728,0.7759,2482.7,2482.3,0.55]
[1750920865934,0.12581204,2482.6,2482.3,0.55]
[1750920866135,0.12581204,2482.5,2482.3,0.55]
[1750920866319,0.9767,2482.7,2482.3,0.55]
[1750920866519,0.12581202,2482.6,2482.3,0.55]
[1750920866753,0.12581202,2482.5,2482.3,0.55]
[1750920867045,0.9767,2482.7,2482.3,0.55]
[1750920867253,0.12581221,2482.6,2482.4,3.2226779]
[1750920867452,0.12581221,2482.5,2482.4,3.77268772]
[1750920868829,0.12581221,2482.5,2482.3,4.18108425]
[1750920868830,0.2008,2483.0,2482.7,0.55]
[1750920869042,0.12579988,2482.9,2482.7,0.55]
[1750920869361,0.12579988,2482.8,2482.7,0.55]
[1750920871520,0.12579988,2482.8,2482.7,3.7722983]
[1750920871722,0.12579988,2482.8,2482.7,4.5281983]
[1750920871955,0.12579988,2482.8,2482.7,4.7289983]
[1750920872862,1.685,2483.5,2483.2,3.77156063]
[1750920873031,0.12577061,2483.4,2483.3,3.77150154]
[1750920873863,0.12577061,2483.4,2483.2,0.2008]
[1750920874164,0.91487061,2483.3,2483.0,0.7508]
[1750920874335,0.12577061,2483.2,2483.0,0.7508]
[1750920874537,0.12577061,2483.1,2483.0,0.2008]
[1750920874742,0.12577061,2483.1,2482.9,0.55]
[1750920874943,0.2008,2483.2,2482.4,0.792]
[1750920874944,0.12577061,2483.0,2482.4,0.792]
[1750920875134,0.95567061,2482.9,2482.6,3.42310389]
[1750920875332,0.12577061,2482.8,2482.6,3.42310389]
[1750920875544,0.8299,2482.9,2482.7,0.55]
[1750920875874,0.12580053,2482.8,2482.3,3.22276239]
[1750920876073,0.2008,2482.8,2482.4,3.22268772]
[1750920876230,0.2008,2482.8,2482.5,3.22249008]
[1750920877058,0.12580264,2482.7,2482.5,3.22249008]
[1750920877386,0.2008,2482.8,2482.5,3.22249008]
[1750920877684,0.12580574,2482.7,2482.5,3.22249008]
[1750920877859,0.2008,2482.8,2482.5,3.22249008]
[1750920878061,0.12580475,2482.7,2482.5,3.22249008]
[1750920878382,0.2008,2482.8,2482.3,3.42356724]
[1750920878383,0.2008,2482.8,2482.4,3.77263323]
[1750920878687,0.12580494,2482.7,2482.4,0.55]
[1750920878890,0.12580494,2482.6,2482.4,0.55]
[1750920879052,0.12580494,2482.5,2482.4,0.55]
[1750920880589,0.88610494,2482.5,2482.2,0.55]
[1750920880878,0.7603,2482.5,2482.2,3.7729433]
[1750920882459,0.2008,2482.6,2482.3,3.22274238]
[1750920882657,0.12581239,2482.5,2482.4,3.22268772]
[1750920884883,0.12581239,2482.5,2482.3,3.2227166]
[1750920885078,0.2008,2482.6,2482.3,3.2227166]
[1750920885259,0.12581365,2482.5,2482.3,3.2227166]
[1750920885467,0.2008,2482.6,2482.3,3.2227166]
[1750920885676,0.12581382,2482.5,2482.3,3.2227166]
[1750920886012,0.2008,2482.6,2482.4,3.22268772]
[1750920886299,0.12581186,2482.5,2482.4,3.22268772]
[1750920886708,0.12581186,2482.5,2482.4,3.77268772]